fUSD/lending_fUSD_20260225
["ID","MTS","AMOUNT","RATE_DAILY","PERIOD"]
[406652797,1772037034279,-300.0,6.65e-05,2]
[406652798,1772037034288,-300.0,6.65e-05,2]
[406652799,1772037034297,-150.0,6.65e-05,2]
[406652800,1772037034306,-279.03912721,6.651e-05,2]
[406652801,1772037034315,-500.0,6.651e-05,2]
[406652802,1772037034324,-500.0,6.651e-05,2]
[406652803,1772037034334,-500.0,6.651e-05,2]
[406652804,1772037034343,-500.0,6.651e-05,2]
[406652805,1772037034353,-500.0,6.651e-05,2]
[406652806,1772037034362,-500.0,6.651e-05,2]
[406652807,1772037034371,-500.0,6.651e-05,2]
[406652808,1772037034380,-500.0,6.651e-05,2]
[406652809,1772037034389,-500.0,6.651e-05,2]
[406652810,1772037034401,-500.0,6.651e-05,2]
[406652811,1772037034410,-500.0,6.651e-05,2]
[406652812,1772037034420,-332.9363957,6.651e-05,2]
[406652813,1772037034429,-225.34133153,6.651e-05,2]
[406652814,1772037034438,-500.0,6.651e-05,2]
[406652815,1772037034447,-500.0,6.651e-05,2]
[406652816,1772037034456,-500.0,6.651e-05,2]
[406652817,1772037034465,-500.0,6.651e-05,2]
[406652818,1772037034474,-532.42276336,6.651e-05,2]
[406652820,1772037034483,-500.0,6.651e-05,2]
[406652821,1772037034492,-500.0,6.651e-05,2]
[406652823,1772037034501,-500.0,6.651e-05,2]
[406652825,1772037034514,-500.0,6.651e-05,2]
[406652826,1772037034523,-500.0,6.651e-05,2]
[406652827,1772037034533,-329.05330473,6.651e-05,2]
[406652828,1772037034542,-500.0,6.651e-05,2]
[406652829,1772037034552,-500.0,6.651e-05,2]
[406652830,1772037034563,-500.0,6.651e-05,2]
[406652831,1772037034572,-500.0,6.651e-05,2]
[406652832,1772037034582,-500.0,6.651e-05,2]
[406652833,1772037034592,-500.0,6.651e-05,2]
[406652834,1772037034601,-500.0,6.651e-05,2]
[406652835,1772037034611,-500.0,6.651e-05,2]
[406652836,1772037034620,-500.0,6.651e-05,2]
[406652837,1772037034630,-500.0,6.651e-05,2]
[406652838,1772037034640,-500.0,6.651e-05,2]
[406652839,1772037034649,-500.0,6.651e-05,2]
[406652840,1772037034659,-500.0,6.651e-05,2]
[406652841,1772037034668,-500.0,6.651e-05,2]
[406652842,1772037034678,-500.0,6.651e-05,2]
[406652843,1772037034687,-500.0,6.651e-05,2]
[406652844,1772037034697,-500.0,6.651e-05,2]
[406652845,1772037034706,-500.0,6.651e-05,2]
[406652846,1772037034715,-500.0,6.651e-05,2]
[406652847,1772037034724,-500.0,6.651e-05,2]
[406652848,1772037034734,-500.0,6.651e-05,2]
[406652849,1772037034743,-500.0,6.651e-05,2]
[406652850,1772037034752,-500.0,6.651e-05,2]
[406652851,1772037034762,-500.0,6.651e-05,2]
[406652852,1772037034771,-500.0,6.651e-05,2]
[406652853,1772037034781,-500.0,6.651e-05,2]
[406652854,1772037034790,-500.0,6.651e-05,2]
[406652855,1772037034799,-500.0,6.651e-05,2]
[406652856,1772037034810,-500.0,6.651e-05,2]
[406652857,1772037034819,-500.0,6.651e-05,2]
[406652858,1772037034829,-464.96010571,6.651e-05,2]
[406652859,1772037034838,-500.0,6.651e-05,2]
[406652878,1772037035014,-500.0,6.651e-05,2]
[406652880,1772037035025,-500.0,6.651e-05,2]
[406652882,1772037035034,-500.0,6.651e-05,2]
[406652884,1772037035043,-500.0,6.651e-05,2]
[406652886,1772037035053,-500.0,6.651e-05,2]
[406652888,1772037035063,-500.0,6.651e-05,2]
[406652890,1772037035072,-500.0,6.651e-05,2]
[406652892,1772037035081,-500.0,6.651e-05,2]
[406652894,1772037035090,-500.0,6.651e-05,2]
[406652896,1772037035099,-500.0,6.651e-05,2]
[406652898,1772037035108,-500.0,6.651e-05,2]
[406652900,1772037035117,-500.0,6.651e-05,2]
[406652901,1772037035126,-424.64095137,6.651e-05,2]
[406652903,1772037035135,-500.0,6.651e-05,2]
[406652905,1772037035144,-500.0,6.651e-05,2]
[406652907,1772037035153,-500.0,6.651e-05,2]
[406652909,1772037035162,-500.0,6.651e-05,2]
[406652911,1772037035171,-500.0,6.651e-05,2]
[406652913,1772037035180,-500.0,6.651e-05,2]
[406652915,1772037035189,-500.0,6.651e-05,2]
[406652917,1772037035198,-500.0,6.651e-05,2]
[406652920,1772037035209,-500.0,6.651e-05,2]
[406652921,1772037035218,-500.0,6.651e-05,2]
[406652924,1772037035230,-500.0,6.651e-05,2]
[406652926,1772037035239,-500.0,6.651e-05,2]
[406652927,1772037035249,-500.0,6.651e-05,2]
[406652930,1772037035258,-500.0,6.651e-05,2]
[406652931,1772037035267,-500.0,6.651e-05,2]
[406652933,1772037035277,-500.0,6.651e-05,2]
[406652936,1772037035286,-500.0,6.651e-05,2]
[406652938,1772037035295,-500.0,6.651e-05,2]
[406652939,1772037035304,-500.0,6.651e-05,2]
[406652941,1772037035315,-500.0,6.651e-05,2]
[406652943,1772037035324,-500.0,6.651e-05,2]
[406652946,1772037035333,-500.0,6.651e-05,2]
[406652947,1772037035342,-500.0,6.651e-05,2]
[406652949,1772037035351,-500.0,6.651e-05,2]
[406652952,1772037035361,-500.0,6.651e-05,2]
[406652953,1772037035371,-500.0,6.651e-05,2]
[406652955,1772037035380,-650.0,6.651e-05,2]
[406652958,1772037035389,-500.0,6.651e-05,2]
[406652960,1772037035399,-248.37613792,6.651e-05,2]
[406652962,1772037035407,-203.25195656,6.651e-05,2]
[406652964,1772037035417,-1078.36665032,6.651e-05,2]
[406652965,1772037035427,-68212.5896428,6.652e-05,2]
[406652968,1772037035439,-113140.53090172,6.652e-05,2]
[406652972,1772037035468,-1014.31929586,6.652e-05,2]
[406652974,1772037035479,-1931.43592063,6.652e-05,2]
[406653195,1772037038505,-904.82,6.652e-05,2]
[406653196,1772037038517,-97901.05840232,6.652e-05,2]
[406653197,1772037038529,-13827.69730331,6.652e-05,2]
[406653198,1772037038542,-1970.51589314,6.652e-05,2]
[406653199,1772037038638,-15872.94042967,6.652e-05,2]
[406653200,1772037038649,-3753.19685657,6.652e-05,2]
[406653201,1772037038661,-1182.08175106,6.652e-05,2]
[406653202,1772037038673,-2052.85759165,6.652e-05,2]
[406653394,1772037040962,-361341.6337721,6.652e-05,2]
[406653395,1772037040974,-875.26127752,6.652e-05,2]
[406653396,1772037041137,-1225385.74173374,6.652e-05,2]
[406653397,1772037041146,-5000.0,6.741e-05,2]
[406653398,1772037041156,-4000.0,6.741e-05,2]
[406653399,1772037041164,-10219.39255982,6.742e-05,2]
[406653400,1772037041174,-549.24,6.752e-05,2]
[406653401,1772037041184,-999.99,6.753e-05,2]
[406653402,1772037041193,-150.99,6.753e-05,2]
[406653403,1772037041203,-3663.07,6.782e-05,2]
[406653404,1772037041212,-9999.99,6.8e-05,2]
[406653405,1772037041223,-150.99,6.8e-05,2]
[406653406,1772037041232,-3500.55,6.8e-05,2]
[406653407,1772037041241,-3368.97,6.8e-05,2]
[406653408,1772037041251,-299.99,6.8e-05,2]
[406653409,1772037041260,-900.0,6.8e-05,2]
[406653410,1772037041270,-1078.36665032,6.852e-05,2]
[406653411,1772037041279,-500.0,6.873e-05,2]
[406653412,1772037041288,-500.0,6.873e-05,2]
[406653413,1772037041298,-500.0,6.873e-05,2]
[406653415,1772037041307,-500.0,6.873e-05,2]
[406653417,1772037041316,-500.0,6.873e-05,2]
[406653418,1772037041325,-500.0,6.873e-05,2]
[406653419,1772037041335,-500.0,6.873e-05,2]
[406653420,1772037041344,-500.0,6.873e-05,2]
[406653421,1772037041354,-200.0,6.875e-05,2]
[406653422,1772037041363,-1800.0,6.9e-05,2]
[406653423,1772037041374,-192.0,6.947e-05,2]
[406653424,1772037041384,-308.0,6.961e-05,2]
[406653425,1772037041393,-433.0,6.97e-05,2]
[406653426,1772037041402,-395.0,6.975e-05,2]
[406653427,1772037041412,-2700.0,7e-05,2]
[406653428,1772037041421,-549.24,7.025e-05,2]
[406653429,1772037041431,-250.0,7.293e-05,2]
[406653430,1772037041440,-549.24,7.299e-05,2]
[406653431,1772037041449,-1680.0,7.314e-05,2]
[406653432,1772037041459,-420.0,7.314e-05,2]
[406653433,1772037041468,-420.0,7.314e-05,2]
[406653434,1772037041478,-255.0,7.314e-05,2]
[406653435,1772037041487,-2123.03139304,7.317e-05,2]
[406653436,1772037041496,-1600.0,7.4e-05,2]
[406653437,1772037041506,-5000.0,7.414e-05,2]
[406653438,1772037041515,-532.01941831,7.421e-05,2]
[406653439,1772037041524,-1010.4769589,7.421e-05,2]
[406653440,1772037041534,-339.81205966,7.421e-05,2]
[406653441,1772037041544,-1000.0,7.421e-05,2]
[406653442,1772037041553,-512.75173509,7.421e-05,2]
[406653443,1772037041563,-1000.0,7.421e-05,2]
[406653444,1772037041573,-308.81499859,7.421e-05,2]
[406653445,1772037041583,-1002.07392204,7.421e-05,2]
[406653446,1772037041592,-1852.42,7.547e-05,2]
[406653447,1772037041601,-549.24,7.573e-05,2]
[406653448,1772037041611,-753.89,7.64e-05,2]
[406653449,1772037041620,-549.24,7.847e-05,2]
[406653450,1772037041629,-41013.141306,7.945e-05,2]
[406653451,1772037041639,-1500.0,7.968e-05,2]
[406653452,1772037041648,-500.0,7.968e-05,2]
[406653453,1772037041659,-1864.92716342,8e-05,2]
[406653454,1772037041668,-2351.0,8.046e-05,2]
[406653455,1772037041678,-587.0,8.046e-05,2]
[406653456,1772037041687,-433.0,8.046e-05,2]
[406653457,1772037041697,-549.2537247,8.121e-05,2]
[406653458,1772037041706,-11827.355654,8.178e-05,2]
[406653459,1772037041716,-500.0,8.219e-05,2]
[406653460,1772037041726,-595.81166982,8.219e-05,2]
[406653461,1772037041736,-500.0,8.219e-05,2]
[406653462,1772037041746,-500.0,8.219e-05,2]
[406653463,1772037041755,-500.0,8.219e-05,2]
[406653464,1772037041765,-500.0,8.219e-05,2]
[406653465,1772037041775,-500.0,8.219e-05,2]
[406653466,1772037041784,-150.694395,8.219e-05,2]
[406653467,1772037041794,-188.367994,8.219e-05,2]
[406653468,1772037041804,-500.0,8.219e-05,2]
[406653469,1772037041814,-1600.0,8.325e-05,2]
[406653470,1772037041824,-500.0,8.493e-05,2]
[406653471,1772037041833,-500.0,8.516e-05,2]
[406653472,1772037041843,-500.0,8.767e-05,2]
[406653473,1772037041852,-250.0,8.775e-05,2]
[406653474,1772037041861,-3292.0,8.85e-05,2]
[406653475,1772037041871,-389.0,8.85e-05,2]
[406653476,1772037041882,-736.0,8.85e-05,2]
[406653477,1772037041891,-500.0,9.041e-05,2]
[406653478,1772037041901,-186.87,9.164e-05,2]
[406653479,1772037041911,-1600.0,9.25e-05,2]
[406653480,1772037041920,-500.0,9.315e-05,2]
[406653481,1772037041930,-500.0,9.589e-05,2]
[406653482,1772037041940,-9999.99,9.67e-05,2]
[406653483,1772037041954,-4609.0,9.736e-05,2]
[406653484,1772037041963,-226.041593,9.764e-05,2]
[406653485,1772037041973,-573.28229954,9.803e-05,2]
[406653486,1772037041982,-427.46515504,9.863e-05,2]
[406653487,1772037041994,-725.89625088,0.0001,2]
[406653488,1772037042003,-725.89625088,0.0001,2]
[406653489,1772037042013,-725.89625088,0.0001,2]
[406653490,1772037042024,-1600.0,0.00010175,2]
[406653491,1772037042034,-500.0,0.000103,2]
[406653492,1772037042044,-500.0,0.000103,2]
[406653493,1772037042054,-500.0,0.000103,2]
[406653494,1772037042064,-500.0,0.000103,2]
[406653495,1772037042074,-500.0,0.000103,2]
[406653496,1772037042084,-500.0,0.000103,2]
[406653497,1772037042093,-500.0,0.000103,2]
[406653498,1772037042103,-500.0,0.000103,2]
[406653499,1772037042112,-500.0,0.000103,2]
[406653500,1772037042122,-500.0,0.000103,2]
[406653501,1772037042131,-500.0,0.000103,2]
[406653502,1772037042141,-500.0,0.000103,2]
[406653503,1772037042151,-500.0,0.000103,2]
[406653504,1772037042161,-500.0,0.000103,2]
[406653505,1772037042170,-6453.0,0.00010709,2]
[406653506,1772037042180,-3789.16746566,0.000109,2]
[406653507,1772037042189,-3789.1674656,0.000109,2]
[406653508,1772037042199,-3789.1674656,0.000109,2]
[406653509,1772037042208,-166.66,0.00010959,2]
[406653510,1772037042218,-150.0,0.00010959,2]
[406653511,1772037042227,-166.66,0.00011068,2]
[406653512,1772037042236,-17145.16964719,0.00011099,2]
[406653513,1772037042246,-17145.16964714,0.00011099,2]
[406653514,1772037042255,-17145.16964714,0.00011099,2]
[406653515,1772037042265,-17145.16964714,0.00011099,2]
[406653516,1772037042275,-2699.16386559,0.00011099,2]
[406653517,1772037042284,-2699.1638655,0.00011099,2]
[406653518,1772037042293,-2699.1638655,0.00011099,2]
[406653519,1772037042303,-2699.1638655,0.00011099,2]
[406653520,1772037042313,-1600.0,0.000111,2]
[406653521,1772037042327,-166.66,0.00011178,2]
[406653522,1772037042337,-161.12,0.00011233,2]
[406653523,1772037042346,-166.66,0.00011288,2]
[406653524,1772037042355,-166.66,0.00011397,2]
[406653525,1772037042365,-3789.1674656,0.00011466,2]
[406653526,1772037042374,-166.66,0.00011507,2]
[406653527,1772037042384,-21212.0,0.000116,2]
[406653528,1772037042393,-17145.16964714,0.00011644,2]
[406653529,1772037042403,-2699.1638655,0.00011652,2]
[406653530,1772037042413,-9035.0,0.0001178,2]
[406653531,1772037042423,-5531.0,0.00012,3]
[406653532,1772037042434,-5531.0,0.000124,5]
[406653533,1772037042445,-300.0,0.00012463,4]
[406653534,1772037042455,-173.91437885,0.00012663,2]
[406653535,1772037042464,-500.0,0.0001289,2]
[406653536,1772037042474,-500.0,0.0001289,2]
[406653537,1772037042483,-500.0,0.0001289,2]
[406653538,1772037042493,-500.0,0.0001289,2]
[406653539,1772037042502,-500.0,0.0001289,2]
[406653540,1772037042512,-500.0,0.0001289,2]
[406653541,1772037042522,-500.0,0.0001289,2]
[406653542,1772037042532,-500.0,0.0001289,2]
[406653543,1772037042542,-500.0,0.0001289,2]
[406653544,1772037042552,-500.0,0.0001289,2]
[406653545,1772037042562,-500.0,0.0001289,2]
[406653546,1772037042575,-500.0,0.0001289,2]
[406653547,1772037042585,-500.0,0.0001289,2]
[406653548,1772037042595,-500.0,0.0001289,2]
[406653549,1772037042605,-500.0,0.0001289,2]
[406653550,1772037042615,-500.0,0.0001289,2]
[406653551,1772037042625,-757.77042046,0.0001289,2]
[406653552,1772037042635,-17145.16964714,0.00012896,2]
[406653553,1772037042645,-2699.1638655,0.00012901,2]
[406653554,1772037042654,-9548.0,0.00012958,2]
[406653555,1772037042664,-243.848467,0.00013019,2]
[406653556,1772037042674,-188.367994,0.00013019,2]
[406653557,1772037042683,-3789.1674656,0.00013074,2]
[406653558,1772037042693,-500.0,0.00013698,2]
[406653559,1772037042702,-500.0,0.00013698,2]
[406653560,1772037042712,-500.0,0.00013698,2]
[406653561,1772037042722,-500.0,0.00013698,2]
[406653562,1772037042731,-500.0,0.00013698,2]
[406653563,1772037042741,-500.0,0.00013698,2]
[406653564,1772037042750,-500.0,0.00013698,2]
[406653565,1772037042761,-500.0,0.00013698,2]
[406653566,1772037042772,-500.0,0.00013698,2]
[406653567,1772037042782,-500.0,0.00013698,2]
[406653568,1772037042792,-500.0,0.00013698,2]
[406653569,1772037042802,-558.2352126,0.00013698,2]
[406653570,1772037042812,-500.0,0.00013698,2]
[406653571,1772037042823,-500.0,0.00013698,2]
[406653572,1772037042833,-453.06341333,0.00013698,2]
[406653573,1772037042842,-500.0,0.00013698,2]
[406653574,1772037042852,-500.0,0.00013698,2]
[406653575,1772037042861,-500.0,0.00013698,2]
[406653576,1772037042871,-500.0,0.00013698,2]
[406653577,1772037042880,-500.0,0.00013698,2]
[406653578,1772037042889,-500.0,0.00013698,2]
[406653579,1772037042899,-500.0,0.00013698,2]
[406653580,1772037042909,-442.42094836,0.00013698,2]
[406653581,1772037042918,-500.0,0.00013698,2]
[406653582,1772037042927,-500.0,0.00013698,2]
[406653583,1772037042937,-500.0,0.00013698,2]
[406653584,1772037042949,-500.0,0.00013698,2]
[406653585,1772037042961,-400.83516378,0.00013698,2]
[406653586,1772037042971,-500.0,0.00013698,2]
[406653587,1772037042981,-387.31685331,0.00013698,2]
[406653588,1772037042991,-490.05,0.00013699,2]
[406653589,1772037043000,-500.0,0.00013699,2]
[406653590,1772037043009,-500.0,0.00013699,2]
[406653591,1772037043020,-500.0,0.00013699,2]
[406653592,1772037043029,-163.99667352,0.00013699,2]
[406653593,1772037043038,-278.93340404,0.00013699,2]
[406653594,1772037043048,-500.0,0.00013699,2]
[406653595,1772037043058,-620.36908714,0.00013699,2]
[406653596,1772037043068,-500.0,0.00013699,2]
[406653597,1772037043078,-160.89687395,0.00013699,2]
[406653598,1772037043088,-500.0,0.00013699,2]
[406653599,1772037043098,-500.0,0.00013699,2]
[406653600,1772037043108,-500.0,0.00013699,2]
[406653601,1772037043118,-335.65029794,0.00013699,2]
[406653602,1772037043127,-500.0,0.00013699,2]
[406653603,1772037043137,-500.0,0.00013699,2]
[406653604,1772037043146,-161.12812418,0.00013699,2]
[406653605,1772037043156,-500.0,0.00013699,2]
[406653613,1772037043301,-500.0,0.00013699,2]
[406653615,1772037043311,-308.64663473,0.00013699,2]
[406653616,1772037043325,-500.0,0.00013699,2]
[406653617,1772037043335,-500.0,0.00013699,2]
[406653618,1772037043345,-500.0,0.00013699,2]
[406653619,1772037043355,-500.0,0.00013699,2]
[406653620,1772037043365,-337.75482183,0.00013699,2]
[406653621,1772037043375,-500.0,0.00013699,2]
[406653624,1772037043385,-500.0,0.00013699,2]
[406653627,1772037043396,-500.0,0.00013699,2]
[406653630,1772037043406,-500.0,0.00013699,2]
[406653631,1772037043417,-500.0,0.00013699,2]
[406653632,1772037043427,-500.0,0.00013699,2]
[406653633,1772037043437,-500.0,0.00013699,2]
[406653634,1772037043447,-161.14332278,0.00013699,2]
[406653635,1772037043456,-500.0,0.00013699,2]
[406653636,1772037043466,-500.0,0.00013699,2]
[406653637,1772037043475,-500.0,0.00013699,2]
[406653638,1772037043485,-500.0,0.00013699,2]
[406653639,1772037043495,-160.16,0.00013699,2]
[406653640,1772037043505,-500.0,0.00013699,2]
[406653641,1772037043515,-500.0,0.00013699,2]
[406653642,1772037043525,-500.0,0.00013699,2]
[406653643,1772037043534,-500.0,0.00013699,2]
[406653644,1772037043544,-500.0,0.00013699,2]
[406653645,1772037043553,-500.0,0.00013699,2]
[406653646,1772037043563,-162.08719206,0.00013699,2]
[406653647,1772037043578,-500.0,0.00013699,2]
[406653648,1772037043587,-163.76963508,0.00013699,2]
[406653649,1772037043597,-500.0,0.00013699,2]
[406653650,1772037043607,-500.0,0.00013699,2]
[406653651,1772037043617,-500.0,0.00013699,2]
[406653652,1772037043631,-500.0,0.00013699,2]
[406653653,1772037043641,-500.0,0.00013699,2]
[406653654,1772037043651,-500.0,0.00013699,2]
[406653655,1772037043660,-500.0,0.00013699,2]
[406653656,1772037043670,-560.05685874,0.00013699,7]
[406653657,1772037043680,-500.0,0.00013699,2]
[406653658,1772037043689,-209.669428,0.00013699,2]
[406653659,1772037043699,-500.0,0.00013699,2]
[406653660,1772037043709,-524.32496394,0.00013699,2]
[406653661,1772037043719,-500.0,0.00013699,2]
[406653662,1772037043729,-500.0,0.00013699,2]
[406653663,1772037043739,-500.0,0.00013699,2]
[406653664,1772037043748,-500.0,0.00013699,2]
[406653665,1772037043758,-500.0,0.00013699,2]
[406653666,1772037043768,-500.0,0.00013699,2]
[406653667,1772037043777,-500.0,0.00013699,2]
[406653668,1772037043787,-500.0,0.00013699,2]
[406653669,1772037043797,-500.0,0.00013699,2]
[406653670,1772037043806,-500.0,0.00013699,2]
[406653671,1772037043815,-3600.0,0.000139,5]
[406653672,1772037043828,-17145.16964714,0.00014147,2]
[406653673,1772037043837,-2699.1638655,0.00014151,2]
[406653674,1772037043846,-2288.4601003,0.0001421,7]
[406653675,1772037043855,-1000.0,0.00014247,2]
[406653676,1772037043865,-1000.0,0.00014247,2]
[406653677,1772037043875,-1000.0,0.00014247,2]
[406653678,1772037043884,-1000.0,0.00014247,2]
[406653679,1772037043894,-1000.0,0.00014247,2]
[406653680,1772037043904,-1000.0,0.00014247,2]
[406653681,1772037043914,-1000.0,0.00014247,2]
[406653682,1772037043924,-1000.0,0.00014247,2]
[406653683,1772037043934,-1000.0,0.00014247,2]
[406653684,1772037043946,-1000.0,0.00014247,2]
[406653685,1772037043959,-1008.34147468,0.00014247,2]
[406653686,1772037043969,-1000.0,0.00014247,2]
[406653687,1772037043979,-351.72128687,0.00014247,2]
[406653688,1772037043990,-467.67692832,0.00014247,2]
[406653689,1772037044000,-502.69399529,0.00014247,2]
[406653690,1772037044009,-1000.0,0.00014247,2]
[406653691,1772037044020,-1000.0,0.00014247,2]
[406653692,1772037044029,-1000.0,0.00014247,2]
[406653693,1772037044040,-992.23312849,0.00014247,2]
[406653694,1772037044049,-1000.0,0.00014247,2]
[406653695,1772037044059,-1000.0,0.00014247,2]
[406653696,1772037044070,-1000.0,0.00014247,2]
[406653697,1772037044080,-1000.0,0.00014247,2]
[406653698,1772037044089,-604.2577825,0.00014247,2]
[406653699,1772037044098,-1000.0,0.00014247,2]
[406653700,1772037044108,-1000.0,0.00014247,2]
[406653701,1772037044117,-1000.0,0.00014247,2]
[406653702,1772037044126,-1000.0,0.00014247,2]
[406653703,1772037044137,-1000.0,0.00014247,2]
[406653704,1772037044147,-1000.0,0.00014247,2]
[406653705,1772037044157,-1007.67306464,0.00014247,2]
[406653706,1772037044166,-175.96468334,0.00014247,2]
[406653707,1772037044175,-1000.0,0.00014247,2]
[406653708,1772037044185,-800.44121468,0.00014247,2]
[406653709,1772037044194,-776.00043833,0.00014247,2]
[406653710,1772037044204,-185.59048766,0.00014247,2]
[406653711,1772037044214,-1000.0,0.00014247,2]
[406653712,1772037044223,-374.88076834,0.00014247,2]
[406653713,1772037044233,-1000.0,0.00014247,2]
[406653715,1772037044242,-503.12005961,0.00014247,2]
[406653717,1772037044253,-1000.0,0.00014247,2]
[406653719,1772037044264,-1000.0,0.00014247,2]
[406653721,1772037044274,-380.44800806,0.00014247,2]
[406653723,1772037044283,-1000.0,0.00014247,2]
[406653725,1772037044293,-1000.0,0.00014247,2]
[406653727,1772037044303,-1000.0,0.00014247,2]
[406653728,1772037044311,-502.589699,0.00014247,2]
[406653729,1772037044323,-500.72491405,0.00014247,2]
[406653730,1772037044332,-1000.0,0.00014247,2]
[406653731,1772037044342,-1000.0,0.00014247,2]
[406653732,1772037044352,-1000.0,0.00014247,2]
[406653733,1772037044360,-1000.0,0.00014247,2]
[406653734,1772037044369,-1004.88674942,0.00014247,2]
[406653735,1772037044378,-1340.0,0.00014383,2]
[406653736,1772037044388,-5982.0,0.00014383,2]
[406653737,1772037044398,-495.503,0.00014383,2]
[406653738,1772037044407,-490.05,0.00014384,2]
[406653739,1772037044417,-150.0,0.00014494,2]
[406653740,1772037044427,-1277.0,0.00014494,2]
[406653741,1772037044437,-920.0,0.00014494,2]
[406653742,1772037044446,-1219.12,0.00014494,2]
[406653743,1772037044455,-3789.1674656,0.00014683,2]
[406653744,1772037044465,-1500.0,0.00014795,2]
[406653745,1772037044474,-1500.0,0.00014795,2]
[406653746,1772037044483,-1505.84689332,0.00014795,2]
[406653747,1772037044493,-1500.0,0.00014795,2]
[406653748,1772037044502,-344.84278362,0.00014795,2]
[406653749,1772037044512,-1500.0,0.00014795,2]
[406653750,1772037044521,-1500.0,0.00014795,2]
[406653751,1772037044531,-1500.0,0.00014795,2]
[406653752,1772037044540,-1500.0,0.00014795,2]
[406653753,1772037044550,-502.28503114,0.00014795,2]
[406653754,1772037044559,-1500.0,0.00014795,2]
[406653755,1772037044569,-1500.0,0.00014795,2]
[406653756,1772037044579,-1508.10480934,0.00014795,2]
[406653757,1772037044590,-1500.0,0.00014795,2]
[406653759,1772037044599,-1500.0,0.00014795,2]
[406653761,1772037044609,-788.09474142,0.00014795,2]
[406653762,1772037044619,-1500.0,0.00014795,2]
[406653763,1772037044628,-1500.0,0.00014795,2]
[406653764,1772037044638,-1012.76163768,0.00014795,2]
[406653765,1772037044648,-1500.0,0.00014795,2]
[406653766,1772037044658,-1009.93232969,0.00014795,2]
[406653767,1772037044668,-1500.0,0.00014795,2]
[406653768,1772037044678,-1500.0,0.00014795,2]
[406653769,1772037044687,-1500.0,0.00014795,2]
[406653770,1772037044696,-1216.25934348,0.00014795,2]
[406653771,1772037044706,-1500.0,0.00014795,2]
[406653772,1772037044715,-1500.0,0.00014795,2]
[406653773,1772037044725,-1500.0,0.00014795,2]
[406653774,1772037044735,-1091.6833327,0.00014795,2]
[406653775,1772037044745,-1500.0,0.00014795,2]
[406653776,1772037044755,-1500.0,0.00014795,2]
[406653777,1772037044764,-1500.0,0.00014795,2]
[406653778,1772037044773,-1500.0,0.00014795,2]
[406653779,1772037044783,-1500.0,0.00014795,2]
[406653780,1772037044792,-1006.69135807,0.00014795,2]
[406653781,1772037044802,-1500.0,0.00014795,2]
[406653782,1772037044811,-169.39470199,0.000149,2]
[406653783,1772037044822,-169.39470198,0.000149,2]
[406653784,1772037044832,-169.39470198,0.000149,2]
[406653785,1772037044842,-490.05,0.00015068,2]
[406653786,1772037044851,-236.91,0.00015148,2]
[406653787,1772037044861,-526.85264,0.00015342,2]
[406653788,1772037044870,-2000.0,0.00015342,2]
[406653789,1772037044880,-1749.1830332,0.00015342,2]
[406653790,1772037044890,-1144.44196517,0.00015342,2]
[406653791,1772037044900,-2000.0,0.00015342,2]
[406653792,1772037044911,-2000.0,0.00015342,2]
[406653793,1772037044921,-2000.0,0.00015342,2]
[406653794,1772037044930,-2000.0,0.00015342,2]
[406653795,1772037044941,-1511.45189164,0.00015342,2]
[406653796,1772037044953,-2000.0,0.00015342,2]
[406653797,1772037044963,-2000.0,0.00015342,2]
[406653798,1772037044972,-2000.0,0.00015342,2]
[406653799,1772037044983,-2000.0,0.00015342,2]
[406653800,1772037044993,-288.76951139,0.00015342,2]
[406653801,1772037045003,-1703.52805437,0.00015342,2]
[406653802,1772037045013,-2000.0,0.00015342,2]